{"text_format":"3","workbook":"xlsx","n_sheets":4,"sheets":["Danh sách Mua sắm","Ngân sách Chi tiết","Danh sách Việc Cần làm","Danh sách Chia sẻ"],"not_rendered":{"charts":2,"images":2,"defined_names":12},"read":"whole","date_system":"1900"}

{"sheet":"Danh sách Mua sắm","index":0,"n_rows":25,"n_cols":8,"rows_kept":25,"merged":[[2,1,2,7],[3,1,3,2],[4,4,6,7]]}
[null,"Tựu Trường","có Kế hoạch"]
[]
[null,"Theo dõi tiến độ mua sắm so với số tiền cho từng thể loại trong ngân sách, đã được nhập trong Ngân sách Chi tiết."]
[null,"Tóm tắt Ngân sách",null,null,{"$f":"\"Tiến độ Mua (\"&COUNTIFS(Danh_sách_kiểm_tra[Đã mua], \">0\")&\" trên \"&COUNTIFS(Danh_sách_kiểm_tra[Cần Mua], \">0\")&\")\"","v":"Tiến độ Mua (1 trên 6)"}]
[null,"Ngân sách",{"v":1500,"d":"1,500.00 ₫"},null,{"$f":"IFERROR(COUNTIFS(Danh_sách_kiểm_tra[Cần Mua],\">0\",Danh_sách_kiểm_tra[Đã mua],\">0\")/Tổng_Mặt_hàng_Cần_Mua,0)","v":{"v":0.16666666666666666,"d":"17%"}}]
[null,"Tổng Danh sách Mua sắm",{"$f":"IFERROR(SUM(Tổng_Danh_sách_kiểm_tra), \"\")","v":{"v":365,"d":"365.00 ₫"}}]
[null,"Tiền mặt Còn lại",{"$f":"IFERROR(C5-C6, \"\")","v":{"v":1135,"d":"1,135.00 ₫"}}]
[null,"Danh sách Mua sắm"]
[null,"Mặt hàng","Thể loại","SL","Cần Mua","Chi phí","Đã mua","Tổng Chi phí"]
[null,"Toán","Sách Giáo khoa",1,1,{"v":55,"d":"55.00 ₫"},1,{"$f":"IFERROR(Danh_sách_kiểm_tra[SL]*Danh_sách_kiểm_tra[Chi phí], \"\")","v":{"v":55,"d":"55.00 ₫"}}]
[null,"Tiếng Anh","Sách Giáo khoa",1,1,null,null,{"$f":"IFERROR(Danh_sách_kiểm_tra[SL]*Danh_sách_kiểm_tra[Chi phí], \"\")","v":0}]
[null,"Ba lô","Dụng cụ học tập",1,null,{"v":30,"d":"30.00 ₫"},null,{"$f":"IFERROR(Danh_sách_kiểm_tra[SL]*Danh_sách_kiểm_tra[Chi phí], \"\")","v":{"v":30,"d":"30.00 ₫"}}]
[null,"Máy tính tay","Dụng cụ học tập",1,{"$nulls":3},{"$f":"IFERROR(Danh_sách_kiểm_tra[SL]*Danh_sách_kiểm_tra[Chi phí], \"\")","v":0}]
[null,"Bút đánh dấu","Dụng cụ học tập",3,{"$nulls":3},{"$f":"IFERROR(Danh_sách_kiểm_tra[SL]*Danh_sách_kiểm_tra[Chi phí], \"\")","v":0}]
[null,"Đồng phục","Quần áo",2,1,{"v":100,"d":"100.00 ₫"},null,{"$f":"IFERROR(Danh_sách_kiểm_tra[SL]*Danh_sách_kiểm_tra[Chi phí], \"\")","v":{"v":200,"d":"200.00 ₫"}}]
[null,"Áo cài khuy","Quần áo",4,{"$nulls":3},{"$f":"IFERROR(Danh_sách_kiểm_tra[SL]*Danh_sách_kiểm_tra[Chi phí], \"\")","v":0}]
[null,"Áo thun","Quần áo",5,{"$nulls":3},{"$f":"IFERROR(Danh_sách_kiểm_tra[SL]*Danh_sách_kiểm_tra[Chi phí], \"\")","v":0}]
[null,"Quần soóc","Quần áo",2,{"$nulls":3},{"$f":"IFERROR(Danh_sách_kiểm_tra[SL]*Danh_sách_kiểm_tra[Chi phí], \"\")","v":0}]
[null,"Giày đế mềm","Quần áo",2,1,null,null,{"$f":"IFERROR(Danh_sách_kiểm_tra[SL]*Danh_sách_kiểm_tra[Chi phí], \"\")","v":0}]
[null,"Tất","Quần áo",10,{"$nulls":3},{"$f":"IFERROR(Danh_sách_kiểm_tra[SL]*Danh_sách_kiểm_tra[Chi phí], \"\")","v":0}]
[null,"Áo khoác mùa xuân","Quần áo",1,1,{"v":80,"d":"80.00 ₫"},null,{"$f":"IFERROR(Danh_sách_kiểm_tra[SL]*Danh_sách_kiểm_tra[Chi phí], \"\")","v":{"v":80,"d":"80.00 ₫"}}]
[null,"Áo len","Quần áo",1,{"$nulls":3},{"$f":"IFERROR(Danh_sách_kiểm_tra[SL]*Danh_sách_kiểm_tra[Chi phí], \"\")","v":0}]
[null,"Áo nỉ","Quần áo",1,{"$nulls":3},{"$f":"IFERROR(Danh_sách_kiểm_tra[SL]*Danh_sách_kiểm_tra[Chi phí], \"\")","v":0}]
[null,"Đồ lót","Quần áo",10,{"$nulls":3},{"$f":"IFERROR(Danh_sách_kiểm_tra[SL]*Danh_sách_kiểm_tra[Chi phí], \"\")","v":0}]
[null,"Áo khoác mùa đông","Quần áo",1,1,null,null,{"$f":"IFERROR(Danh_sách_kiểm_tra[SL]*Danh_sách_kiểm_tra[Chi phí], \"\")","v":0}]

{"sheet":"Ngân sách Chi tiết","index":1,"n_rows":6,"n_cols":3,"rows_kept":6}
[null,"Ngân sách Chi tiết"]
[null,"Thêm thể loại và số tiền trong ngân sách để theo dõi trong Danh sách Mua sắm của bạn."]
[null,"Thể loại","Tổng Chi phí"]
[null,"Quần áo",{"$f":"IFERROR(SUMIFS(Danh_sách_kiểm_tra[Tổng Chi phí],Danh_sách_kiểm_tra[Thể loại],Thể_loại[Thể loại]), \"\")","v":{"v":280,"d":"280.00 ₫"}}]
[null,"Dụng cụ học tập",{"$f":"IFERROR(SUMIFS(Danh_sách_kiểm_tra[Tổng Chi phí],Danh_sách_kiểm_tra[Thể loại],Thể_loại[Thể loại]), \"\")","v":{"v":30,"d":"30.00 ₫"}}]
[null,"Sách Giáo khoa",{"$f":"IFERROR(SUMIFS(Danh_sách_kiểm_tra[Tổng Chi phí],Danh_sách_kiểm_tra[Thể loại],Thể_loại[Thể loại]), \"\")","v":{"v":55,"d":"55.00 ₫"}}]

{"sheet":"Danh sách Việc Cần làm","index":2,"n_rows":22,"n_cols":3,"rows_kept":22}
[null,"Danh sách Việc Cần làm"]
[null,"Theo dõi tất cả các hoạt động bạn cần hoàn thành trước khi bắt đầu năm học."]
[null,"Đã xong","Nhiệm vụ"]
[null,"x","Hoàn Thành Tất Cả Các Biểu Mẫu Đăng Ký"]
[null,null,"Lên Lịch Kiểm Tra Thị Lực Và Thể Chất Tại Trường Học Nếu Cần"]
[null,null,"Xác Minh Tất Cả Những Mũi Chích Ngừa Bắt Buộc"]
[null,null,"Nhận Ghi Chú Kèm Theo Hướng Dẫn Liều Dùng Cho Tất Cả Thuốc Cần Thiết Từ Bác Sĩ"]
[null,null,"Xem Lại Quy Tắc Về Trang Phục Tại Trường Học"]
[null,null,"Nhận Danh Sách Dụng Cụ Học Tập"]
[null,null,"Gặp Giáo Viên"]
[null,null,"Xác Định Phương Thức Liên Lạc Ưu Tiên Của Giáo Viên (Điện Thoại, Email, Ghi Chú Viết Tay)"]
[null,null,"Tham Quan Trường Học Với Con"]
[null,null,"Giúp Con Ghi Nhớ Số Điện Thoại Nhà, Điện Thoại Cơ Quan Và Địa Chỉ Nhà"]
[null,null,"Sắp Xếp Việc Đi Lại, Chỉ Định Địa Điểm Tập Hợp An Toàn Và Tập Thành Thói Quen"]
[null,null,"Nếu Đi Bộ, Tập Luyện Đến Trường Và Về Nhà Với Con Vài Lần"]
[null,null,"Nếu Đi Chung Xe, Giới Thiệu Con Với Tất Cả Các Tài Xế Lái Xe Đi Chung"]
[null,null,"Nếu Đi Xe Buýt, Xác Định Thời Gian Và Điểm Dừng Xe Buýt"]
[null,null,"Sắp Xếp Việc Chăm Sóc Trẻ/Chăm Sóc Sau Giờ Học"]
[null,null,"Lên Thực Đơn Bữa Sáng, Bữa Ăn Nhẹ Tại Trường, Bữa Trưa Mang Theo Và Bữa Ăn Nhẹ Sau Giờ Học"]
[null,null,"Xác Định Vị Trí Làm Bài Tập Về Nhà Và Thời Gian Biểu"]
[null,null,"Hình Thành Thói Quen Ngủ Đúng Giờ Ít Nhất Hai Tuần Trước Khi Bắt Đầu Năm Học"]
[null,null,"Chuẩn Bị Lịch Ghi Tất Cả Các Sự Kiện Và Hoạt Động Trong Năm Học"]

{"sheet":"Danh sách Chia sẻ","index":3,"n_rows":4,"n_cols":5,"rows_kept":4}
[null,"Danh sách Chia sẻ",null,null,"Chia sẻ danh sách này với những người khác để họ có thể đóng góp. Chọn Chia sẻ ở góc trên bên phải hoặc nhấn ALT rồi nhấn YU. Lưu tệp vào OneDrive và gửi liên kết cho bạn bè."]
[null,"Tên","Email","Đã chia sẻ?"]
[null,"Người 1","ai_do@email.com","Có"]
[null,"Người 2","ai_do@email.com","Không"]